[Event "Titled Tuesday Blitz July 27 2021"]
[White "Fakhrutdinov, Timur"]
[Black "Sorokin, Aleksey"]
[WhiteFideId "24176702"]
[BlackFideId "24176460"]
[WhiteElo "2405"]
[BlackElo "2476"]
[Result "1/2-1/2"]
[Round "02"]
[TimeControl "180+1"]
[Date "2021.07.27"]
[WhiteClock "0:00:05"]
[BlackClock "0:00:07"]

1. Nf3 {[%clk 0:02:57]}  c5 {[%clk 0:02:57]} 2. e3 {[%clk 0:02:56]}  d5 {[%clk 0:02:56]} 3. d4 {[%clk 0:02:53]}  Nc6 {[%clk 0:02:56]} 4. c4 {[%clk 0:02:42]}  cxd4 {[%clk 0:02:46]} 5. Nxd4 {[%clk 0:02:36]}  e6 {[%clk 0:02:31]} 6. cxd5 {[%clk 0:02:25]}  exd5 {[%clk 0:02:30]} 7. Nc3 {[%clk 0:02:18]}  Nf6 {[%clk 0:02:30]} 8. Be2 {[%clk 0:02:16]}  Bd6 {[%clk 0:02:30]} 9. O-O {[%clk 0:02:16]}  O-O {[%clk 0:02:30]} 10. Nf3 {[%clk 0:02:03]}  a6 {[%clk 0:02:29]} 11. b3 {[%clk 0:01:56]}  Bc7 {[%clk 0:02:22]} 12. Bb2 {[%clk 0:01:55]}  Qd6 {[%clk 0:02:22]} 13. g3 {[%clk 0:01:46]}  Be6 {[%clk 0:02:15]} 14. Rc1 {[%clk 0:01:38]}  Rad8 {[%clk 0:02:15]} 15. Nd4 {[%clk 0:01:08]}  Nxd4 {[%clk 0:02:13]} 16. Qxd4 {[%clk 0:01:08]}  Bb6 {[%clk 0:02:12]} 17. Qh4 {[%clk 0:00:52]}  Ba7 {[%clk 0:01:59]} 18. Rfd1 {[%clk 0:00:48]}  b5 {[%clk 0:01:52]} 19. Bf3 {[%clk 0:00:34]}  Qe5 {[%clk 0:01:36]} 20. Rd2 {[%clk 0:00:13]}  Qf5 {[%clk 0:01:20]} 21. Qf4 {[%clk 0:00:11]}  Qxf4 {[%clk 0:01:16]} 22. exf4 {[%clk 0:00:09]}  d4 {[%clk 0:01:11]} 23. Ne4 {[%clk 0:00:09]}  Bd5 {[%clk 0:00:58]} 24. Nxf6+ {[%clk 0:00:08]}  gxf6 {[%clk 0:00:59]} 25. Bxd5 {[%clk 0:00:09]}  Rxd5 {[%clk 0:00:59]} 26. Rc7 {[%clk 0:00:09]}  Bc5 {[%clk 0:00:56]} 27. Rc6 {[%clk 0:00:09]}  d3 {[%clk 0:00:51]} 28. Bxf6 {[%clk 0:00:07]}  Re8 {[%clk 0:00:48]} 29. Kf1 {[%clk 0:00:06]}  h5 {[%clk 0:00:44]} 30. h4 {[%clk 0:00:06]}  a5 {[%clk 0:00:43]} 31. Be5 {[%clk 0:00:06]}  a4 {[%clk 0:00:41]} 32. Rh6 {[%clk 0:00:06]}  Kf8 {[%clk 0:00:37]} 33. Rxh5 {[%clk 0:00:05]}  Bb4 {[%clk 0:00:28]} 34. Rh8+ {[%clk 0:00:04]}  Ke7 {[%clk 0:00:28]} 35. Rxe8+ {[%clk 0:00:04]}  Kxe8 {[%clk 0:00:29]} 36. Rd1 {[%clk 0:00:04]}  Ke7 {[%clk 0:00:25]} 37. bxa4 {[%clk 0:00:05]}  bxa4 {[%clk 0:00:24]} 38. g4 {[%clk 0:00:04]}  Ke6 {[%clk 0:00:22]} 39. h5 {[%clk 0:00:04]}  f6 {[%clk 0:00:22]} 40. Bb2 {[%clk 0:00:04]}  a3 {[%clk 0:00:22]} 41. Ba1 {[%clk 0:00:04]}  d2 {[%clk 0:00:22]} 42. h6 {[%clk 0:00:04]}  Kf7 {[%clk 0:00:20]} 43. Ke2 {[%clk 0:00:03]}  Kg6 {[%clk 0:00:20]} 44. Rh1 {[%clk 0:00:03]}  Kh7 {[%clk 0:00:19]} 45. Kd1 {[%clk 0:00:03]}  Rc5 {[%clk 0:00:19]} 46. Ke2 {[%clk 0:00:04]}  Rc1 {[%clk 0:00:19]} 47. Rd1 {[%clk 0:00:04]}  Kxh6 {[%clk 0:00:18]} 48. Bxf6 {[%clk 0:00:04]}  Rc2 {[%clk 0:00:18]} 49. g5+ {[%clk 0:00:04]}  Kg6 {[%clk 0:00:18]} 50. Kd3 {[%clk 0:00:04]}  Rxa2 {[%clk 0:00:18]} 51. f3 {[%clk 0:00:04]}  Kf5 {[%clk 0:00:18]} 52. Rb1 {[%clk 0:00:03]}  Bd6 {[%clk 0:00:17]} 53. Rb5+ {[%clk 0:00:03]}  Kxf4 {[%clk 0:00:16]} 54. Ke2 {[%clk 0:00:03]}  d1=Q+ {[%clk 0:00:14]} 55. Kxd1 {[%clk 0:00:03]}  Kxf3 {[%clk 0:00:14]} 56. g6 {[%clk 0:00:03]}  Bf4 {[%clk 0:00:14]} 57. g7 {[%clk 0:00:03]}  Rd2+ {[%clk 0:00:14]} 58. Ke1 {[%clk 0:00:03]}  Rg2 {[%clk 0:00:14]} 59. Rb3+ {[%clk 0:00:03]}  Be3 {[%clk 0:00:14]} 60. Kd1 {[%clk 0:00:03]}  a2 {[%clk 0:00:14]} 61. Ra3 {[%clk 0:00:03]}  Rg6 {[%clk 0:00:08]} 62. Bd4 {[%clk 0:00:02]}  Ke4 {[%clk 0:00:04]} 63. Bxe3 {[%clk 0:00:02]}  a1=Q+ {[%clk 0:00:04]} 64. Rxa1 {[%clk 0:00:03]}  Kxe3 {[%clk 0:00:04]} 65. Ra7 {[%clk 0:00:03]}  Ke4 {[%clk 0:00:05]} 66. Rf7 {[%clk 0:00:03]}  Ke5 {[%clk 0:00:05]} 67. Ke2 {[%clk 0:00:04]}  Ke6 {[%clk 0:00:06]} 68. Ra7 {[%clk 0:00:04]}  Kf6 {[%clk 0:00:06]} 69. Kf3 {[%clk 0:00:05]}  Rxg7 {[%clk 0:00:06]} 70. Rxg7 {[%clk 0:00:05]}  Kxg7 {[%clk 0:00:07]} 1/2-1/2


[Site "https://www.chess.com"]

[Event "Titled Tuesday Blitz July 27 2021"]
[White "Gurevich, Dmitry"]
[Black "Khusnutdinov, Rustam"]
[WhiteFideId "2000407"]
[BlackFideId "13701703"]
[WhiteElo "2506"]
[BlackElo "2571"]
[Result "0-1"]
[Round "02"]
[TimeControl "180+1"]
[Date "2021.07.27"]
[WhiteClock "0:00:02"]
[BlackClock "0:00:16"]

1. d4 {[%clk 0:03:00]}  d5 {[%clk 0:02:58]} 2. c4 {[%clk 0:03:00]}  e6 {[%clk 0:02:56]} 3. Nc3 {[%clk 0:02:59]}  a6 {[%clk 0:02:56]} 4. c5 {[%clk 0:02:57]}  b6 {[%clk 0:02:55]} 5. cxb6 {[%clk 0:02:57]}  cxb6 {[%clk 0:02:56]} 6. Nf3 {[%clk 0:02:56]}  Bd6 {[%clk 0:02:54]} 7. Bg5 {[%clk 0:02:53]}  Ne7 {[%clk 0:02:46]} 8. e3 {[%clk 0:02:46]}  Bb7 {[%clk 0:02:45]} 9. Bd3 {[%clk 0:02:44]}  O-O {[%clk 0:02:44]} 10. O-O {[%clk 0:02:42]}  Nd7 {[%clk 0:02:43]} 11. Bf4 {[%clk 0:02:37]}  Qb8 {[%clk 0:02:41]} 12. Bxd6 {[%clk 0:02:23]}  Qxd6 {[%clk 0:02:42]} 13. Rc1 {[%clk 0:02:22]}  Rac8 {[%clk 0:02:39]} 14. Qe2 {[%clk 0:02:22]}  b5 {[%clk 0:02:38]} 15. h3 {[%clk 0:02:20]}  Rc7 {[%clk 0:02:33]} 16. Nb1 {[%clk 0:02:15]}  Rfc8 {[%clk 0:02:32]} 17. Rxc7 {[%clk 0:02:14]}  Rxc7 {[%clk 0:02:15]} 18. Nbd2 {[%clk 0:02:10]}  Nb6 {[%clk 0:02:03]} 19. Nb3 {[%clk 0:02:08]}  Na4 {[%clk 0:02:02]} 20. Rb1 {[%clk 0:01:57]}  h6 {[%clk 0:02:00]} 21. Ne5 {[%clk 0:01:55]}  Nc6 {[%clk 0:01:59]} 22. Nxc6 {[%clk 0:01:52]}  Qxc6 {[%clk 0:02:00]} 23. Rc1 {[%clk 0:01:48]}  Qd6 {[%clk 0:01:58]} 24. Rxc7 {[%clk 0:01:47]}  Qxc7 {[%clk 0:01:59]} 25. Qd2 {[%clk 0:01:44]}  g5 {[%clk 0:01:51]} 26. Qb4 {[%clk 0:01:42]}  Nxb2 {[%clk 0:01:47]} 27. Nc5 {[%clk 0:01:28]}  Nxd3 {[%clk 0:01:27]} 28. Nxd3 {[%clk 0:01:27]}  Qc4 {[%clk 0:01:28]} 29. Qa3 {[%clk 0:00:58]}  Bc8 {[%clk 0:01:04]} 30. Nc5 {[%clk 0:00:53]}  Kg7 {[%clk 0:01:03]} 31. Qa5 {[%clk 0:00:51]}  e5 {[%clk 0:00:46]} 32. Qc7 {[%clk 0:00:51]}  exd4 {[%clk 0:00:46]} 33. Qxc8 {[%clk 0:00:50]}  d3 {[%clk 0:00:38]} 34. Qc7 {[%clk 0:00:50]}  d2 {[%clk 0:00:34]} 35. Qe5+ {[%clk 0:00:49]}  Kg6 {[%clk 0:00:33]} 36. Nd7 {[%clk 0:00:31]}  d1=Q+ {[%clk 0:00:31]} 37. Kh2 {[%clk 0:00:30]}  d4 {[%clk 0:00:27]} 38. Nf8+ {[%clk 0:00:19]}  Kh5 {[%clk 0:00:27]} 39. g4+ {[%clk 0:00:18]}  Qxg4 {[%clk 0:00:28]} 40. hxg4+ {[%clk 0:00:17]}  Kxg4 {[%clk 0:00:29]} 41. Qg3+ {[%clk 0:00:15]}  Kf5 {[%clk 0:00:27]} 42. Qf3+ {[%clk 0:00:12]}  Ke5 {[%clk 0:00:28]} 43. e4 {[%clk 0:00:11]}  d3 {[%clk 0:00:25]} 44. Qe3 {[%clk 0:00:08]}  Qxe4 {[%clk 0:00:20]} 45. Qc5+ {[%clk 0:00:07]}  Kf4 {[%clk 0:00:19]} 46. Qd6+ {[%clk 0:00:04]}  Kf3 {[%clk 0:00:17]} 47. Nd7 {[%clk 0:00:02]}  Qf4+ {[%clk 0:00:16]} 0-1


[Site "https://www.chess.com"]

[Event "Titled Tuesday Blitz July 27 2021"]
[White "Ivlev, Aleksey"]
[Black "Tang, Andrew"]
[WhiteFideId "24185949"]
[BlackFideId "2059630"]
[WhiteElo "2307"]
[BlackElo "2599"]
[Result "0-1"]
[Round "02"]
[TimeControl "180+1"]
[Date "2021.07.27"]
[WhiteClock "0:01:18"]
[BlackClock "0:00:55"]

1. d4 {[%clk 0:02:59]}  d5 {[%clk 0:02:55]} 2. c4 {[%clk 0:02:59]}  e6 {[%clk 0:02:54]} 3. Nf3 {[%clk 0:02:59]}  Nf6 {[%clk 0:02:49]} 4. Nc3 {[%clk 0:02:59]}  Be7 {[%clk 0:02:49]} 5. cxd5 {[%clk 0:02:58]}  exd5 {[%clk 0:02:49]} 6. Bg5 {[%clk 0:02:58]}  c6 {[%clk 0:02:50]} 7. e3 {[%clk 0:02:58]}  Bf5 {[%clk 0:02:50]} 8. Bd3 {[%clk 0:02:53]}  Bxd3 {[%clk 0:02:50]} 9. Qxd3 {[%clk 0:02:54]}  Nbd7 {[%clk 0:02:50]} 10. O-O {[%clk 0:02:47]}  O-O {[%clk 0:02:50]} 11. Rab1 {[%clk 0:02:42]}  a5 {[%clk 0:02:50]} 12. Rfc1 {[%clk 0:02:39]}  Ne4 {[%clk 0:02:49]} 13. Bf4 {[%clk 0:02:29]}  Nxc3 {[%clk 0:02:26]} 14. bxc3 {[%clk 0:02:26]}  b5 {[%clk 0:02:26]} 15. a4 {[%clk 0:02:23]}  bxa4 {[%clk 0:02:17]} 16. c4 {[%clk 0:02:22]}  Bb4 {[%clk 0:01:29]} 17. cxd5 {[%clk 0:02:12]}  cxd5 {[%clk 0:01:30]} 18. Qb5 {[%clk 0:02:12]}  a3 {[%clk 0:01:23]} 19. Qxd5 {[%clk 0:02:12]}  Nf6 {[%clk 0:01:20]} 20. Qa2 {[%clk 0:01:51]}  Qd5 {[%clk 0:01:20]} 21. Qe2 {[%clk 0:01:51]}  Rfc8 {[%clk 0:01:18]} 22. Rd1 {[%clk 0:01:34]}  Ne4 {[%clk 0:01:18]} 23. Ne5 {[%clk 0:01:24]}  Nc3 {[%clk 0:00:57]} 24. Qg4 {[%clk 0:01:20]}  Qe6 {[%clk 0:00:54]} 25. Qf3 {[%clk 0:01:17]}  Nxb1 {[%clk 0:00:54]} 26. Rxb1 {[%clk 0:01:18]}  a2 {[%clk 0:00:55]} 0-1


[Site "https://www.chess.com"]

[Event "Titled Tuesday Blitz July 27 2021"]
[White "Maevsky, Nikolay"]
[Black "Demchenko, Anton"]
[WhiteFideId "4198220"]
[BlackFideId "4160258"]
[WhiteElo "2213"]
[BlackElo "2593"]
[Result "1-0"]
[Round "02"]
[TimeControl "180+1"]
[Date "2021.07.27"]
[WhiteClock "0:00:09"]
[BlackClock "0:00:03"]

1. Nf3 {[%clk 0:03:00]}  d5 {[%clk 0:02:59]} 2. d4 {[%clk 0:02:59]}  Nf6 {[%clk 0:02:58]} 3. c4 {[%clk 0:02:58]}  dxc4 {[%clk 0:02:59]} 4. e3 {[%clk 0:02:58]}  Bg4 {[%clk 0:02:59]} 5. Bxc4 {[%clk 0:02:57]}  e6 {[%clk 0:03:00]} 6. Nbd2 {[%clk 0:02:55]}  Nc6 {[%clk 0:02:54]} 7. O-O {[%clk 0:02:55]}  Bd6 {[%clk 0:02:54]} 8. h3 {[%clk 0:02:55]}  Bh5 {[%clk 0:02:54]} 9. Be2 {[%clk 0:02:54]}  O-O {[%clk 0:02:53]} 10. b3 {[%clk 0:02:54]}  Qe8 {[%clk 0:02:48]} 11. Bb2 {[%clk 0:02:54]}  Nd5 {[%clk 0:02:48]} 12. Nc4 {[%clk 0:02:50]}  Rd8 {[%clk 0:02:43]} 13. a3 {[%clk 0:02:48]}  a6 {[%clk 0:02:43]} 14. b4 {[%clk 0:02:46]}  b5 {[%clk 0:02:41]} 15. Nxd6 {[%clk 0:02:45]}  cxd6 {[%clk 0:02:42]} 16. Rc1 {[%clk 0:02:41]}  f5 {[%clk 0:02:41]} 17. Ne1 {[%clk 0:02:40]}  Bxe2 {[%clk 0:02:40]} 18. Qxe2 {[%clk 0:02:40]}  Nb6 {[%clk 0:02:34]} 19. Rc2 {[%clk 0:02:33]}  Nc4 {[%clk 0:02:31]} 20. Bc1 {[%clk 0:02:33]}  f4 {[%clk 0:02:26]} 21. Qd3 {[%clk 0:02:22]}  e5 {[%clk 0:02:22]} 22. d5 {[%clk 0:02:15]}  Ne7 {[%clk 0:02:00]} 23. exf4 {[%clk 0:02:09]}  Ng6 {[%clk 0:01:50]} 24. fxe5 {[%clk 0:01:59]}  Ngxe5 {[%clk 0:01:48]} 25. Qg3 {[%clk 0:01:47]}  Qf7 {[%clk 0:01:40]} 26. f4 {[%clk 0:01:29]}  Nd7 {[%clk 0:01:39]} 27. Qd3 {[%clk 0:01:25]}  Nf6 {[%clk 0:01:38]} 28. Nf3 {[%clk 0:01:20]}  Qxd5 {[%clk 0:01:33]} 29. Rd1 {[%clk 0:01:07]}  Qh5 {[%clk 0:01:30]} 30. Re2 {[%clk 0:01:00]}  h6 {[%clk 0:01:23]} 31. Rde1 {[%clk 0:00:58]}  d5 {[%clk 0:01:11]} 32. Nd4 {[%clk 0:00:57]}  Rf7 {[%clk 0:01:04]} 33. Nc6 {[%clk 0:00:41]}  Rd6 {[%clk 0:00:23]} 34. Ne7+ {[%clk 0:00:41]}  Rxe7 {[%clk 0:00:24]} 35. Rxe7 {[%clk 0:00:40]}  d4 {[%clk 0:00:24]} 36. R7e6 {[%clk 0:00:26]}  Rd7 {[%clk 0:00:21]} 37. Rxa6 {[%clk 0:00:24]}  Qd5 {[%clk 0:00:15]} 38. Qg6 {[%clk 0:00:17]}  Qf7 {[%clk 0:00:10]} 39. Rxf6 {[%clk 0:00:15]}  Qxg6 {[%clk 0:00:02]} 40. Rxg6 {[%clk 0:00:15]}  d3 {[%clk 0:00:03]} 41. Rd1 {[%clk 0:00:14]}  d2 {[%clk 0:00:03]} 42. Bxd2 {[%clk 0:00:12]}  Nxd2 {[%clk 0:00:04]} 43. Kh1 {[%clk 0:00:10]}  Rd3 {[%clk 0:00:03]} 44. Rb6 {[%clk 0:00:08]}  h5 {[%clk 0:00:02]} 45. Rxb5 {[%clk 0:00:09]}  h4 {[%clk 0:00:03]} 46. Rc5 {[%clk 0:00:09]} 1-0


[Site "https://www.chess.com"]

[Event "Titled Tuesday Blitz July 27 2021"]
[White "Oparin, Grigoriy"]
[Black "Piesik, Piotr"]
[WhiteFideId "24125890"]
[BlackFideId "1136194"]
[WhiteElo "2628"]
[BlackElo "2354"]
[Result "1-0"]
[Round "02"]
[TimeControl "180+1"]
[Date "2021.07.27"]
[WhiteClock "0:02:15"]
[BlackClock "0:01:17"]

1. b3 {[%clk 0:03:00]}  d5 {[%clk 0:02:58]} 2. Bb2 {[%clk 0:03:01]}  c5 {[%clk 0:02:58]} 3. e3 {[%clk 0:03:02]}  a6 {[%clk 0:02:57]} 4. Nf3 {[%clk 0:03:01]}  Nc6 {[%clk 0:02:57]} 5. d4 {[%clk 0:03:02]}  Bg4 {[%clk 0:02:55]} 6. Nbd2 {[%clk 0:03:02]}  e6 {[%clk 0:02:55]} 7. h3 {[%clk 0:03:02]}  Bh5 {[%clk 0:02:52]} 8. Be2 {[%clk 0:03:03]}  Nf6 {[%clk 0:02:52]} 9. O-O {[%clk 0:03:03]}  cxd4 {[%clk 0:02:51]} 10. Nxd4 {[%clk 0:03:03]}  Bxe2 {[%clk 0:02:51]} 11. Qxe2 {[%clk 0:03:04]}  Rc8 {[%clk 0:02:49]} 12. c4 {[%clk 0:03:04]}  Be7 {[%clk 0:02:47]} 13. Rfd1 {[%clk 0:03:03]}  Nxd4 {[%clk 0:02:45]} 14. Bxd4 {[%clk 0:03:03]}  O-O {[%clk 0:02:43]} 15. e4 {[%clk 0:03:02]}  dxe4 {[%clk 0:02:37]} 16. Nxe4 {[%clk 0:03:03]}  Nxe4 {[%clk 0:02:37]} 17. Qxe4 {[%clk 0:03:03]}  Qc7 {[%clk 0:02:28]} 18. Qg4 {[%clk 0:03:02]}  e5 {[%clk 0:02:24]} 19. Be3 {[%clk 0:02:57]}  Rcd8 {[%clk 0:02:21]} 20. Qe4 {[%clk 0:02:48]}  f5 {[%clk 0:02:17]} 21. Qc2 {[%clk 0:02:47]}  f4 {[%clk 0:02:16]} 22. Bd2 {[%clk 0:02:44]}  f3 {[%clk 0:02:15]} 23. Be3 {[%clk 0:02:38]}  fxg2 {[%clk 0:02:11]} 24. Qe4 {[%clk 0:02:38]}  Bf6 {[%clk 0:02:03]} 25. Kxg2 {[%clk 0:02:34]}  Qc6 {[%clk 0:02:01]} 26. Qxc6 {[%clk 0:02:32]}  bxc6 {[%clk 0:02:02]} 27. Bc5 {[%clk 0:02:24]}  Rxd1 {[%clk 0:01:57]} 28. Rxd1 {[%clk 0:02:25]}  Rd8 {[%clk 0:01:57]} 29. Rxd8+ {[%clk 0:02:22]}  Bxd8 {[%clk 0:01:58]} 30. Kf3 {[%clk 0:02:22]}  Kf7 {[%clk 0:01:58]} 31. Ke4 {[%clk 0:02:23]}  Ke6 {[%clk 0:01:57]} 32. b4 {[%clk 0:02:23]}  g5 {[%clk 0:01:51]} 33. a4 {[%clk 0:02:23]}  h5 {[%clk 0:01:51]} 34. f3 {[%clk 0:02:24]}  Bc7 {[%clk 0:01:42]} 35. b5 {[%clk 0:02:20]}  cxb5 {[%clk 0:01:41]} 36. cxb5 {[%clk 0:02:21]}  axb5 {[%clk 0:01:42]} 37. axb5 {[%clk 0:02:22]}  Ba5 {[%clk 0:01:30]} 38. b6 {[%clk 0:02:19]}  Kd7 {[%clk 0:01:30]} 39. Kxe5 {[%clk 0:02:16]}  Kc6 {[%clk 0:01:30]} 40. Be3 {[%clk 0:02:16]}  Bb4 {[%clk 0:01:17]} 41. Kf5 {[%clk 0:02:15]} 1-0


[Site "https://www.chess.com"]

[Event "Titled Tuesday Blitz July 27 2021"]
[White "Ovchinnikov, Vsevolod"]
[Black "Onyshchuk, Volodymyr"]
[WhiteFideId "24176842"]
[BlackFideId "14114038"]
[WhiteElo "2376"]
[BlackElo "2603"]
[Result "0-1"]
[Round "02"]
[TimeControl "180+1"]
[Date "2021.07.27"]
[WhiteClock "0:00:05"]
[BlackClock "0:00:07"]

1. d4 {[%clk 0:03:00]}  d6 {[%clk 0:03:00]} 2. Nf3 {[%clk 0:03:00]}  g6 {[%clk 0:02:59]} 3. c4 {[%clk 0:03:00]}  Bg7 {[%clk 0:02:59]} 4. Nc3 {[%clk 0:03:01]}  e5 {[%clk 0:02:59]} 5. Bg5 {[%clk 0:02:54]}  f6 {[%clk 0:02:57]} 6. Be3 {[%clk 0:02:48]}  Nc6 {[%clk 0:02:56]} 7. g3 {[%clk 0:02:45]}  Nge7 {[%clk 0:02:54]} 8. d5 {[%clk 0:02:40]}  Nb8 {[%clk 0:02:53]} 9. h4 {[%clk 0:02:38]}  h5 {[%clk 0:02:42]} 10. Bh3 {[%clk 0:02:27]}  Bxh3 {[%clk 0:02:37]} 11. Rxh3 {[%clk 0:02:28]}  Nd7 {[%clk 0:02:32]} 12. Qc2 {[%clk 0:02:22]}  Bh6 {[%clk 0:02:21]} 13. Bxh6 {[%clk 0:02:19]}  Rxh6 {[%clk 0:02:21]} 14. O-O-O {[%clk 0:02:14]}  a5 {[%clk 0:02:20]} 15. Rg1 {[%clk 0:02:08]}  Nc5 {[%clk 0:02:19]} 16. g4 {[%clk 0:02:06]}  hxg4 {[%clk 0:02:16]} 17. Rxg4 {[%clk 0:02:07]}  Qd7 {[%clk 0:02:16]} 18. Rhg3 {[%clk 0:02:03]}  O-O-O {[%clk 0:02:13]} 19. b3 {[%clk 0:01:52]}  Rdh8 {[%clk 0:01:45]} 20. Rg1 {[%clk 0:01:42]}  Qf5 {[%clk 0:01:33]} 21. a3 {[%clk 0:01:14]}  Qxc2+ {[%clk 0:01:25]} 22. Kxc2 {[%clk 0:01:15]}  f5 {[%clk 0:01:25]} 23. R4g2 {[%clk 0:01:05]}  e4 {[%clk 0:01:21]} 24. Ng5 {[%clk 0:01:06]}  Rxh4 {[%clk 0:01:19]} 25. b4 {[%clk 0:01:06]}  axb4 {[%clk 0:01:18]} 26. axb4 {[%clk 0:01:07]}  Na6 {[%clk 0:01:18]} 27. Kb3 {[%clk 0:01:07]}  Rh1 {[%clk 0:01:16]} 28. Ne6 {[%clk 0:01:03]}  Rxg1 {[%clk 0:01:04]} 29. Rxg1 {[%clk 0:01:04]}  Rh2 {[%clk 0:01:03]} 30. f3 {[%clk 0:00:46]}  exf3 {[%clk 0:00:52]} 31. exf3 {[%clk 0:00:47]}  Kd7 {[%clk 0:00:45]} 32. Nf8+ {[%clk 0:00:34]}  Kd8 {[%clk 0:00:38]} 33. Nxg6 {[%clk 0:00:28]}  Nxg6 {[%clk 0:00:38]} 34. Rxg6 {[%clk 0:00:29]}  Rh3 {[%clk 0:00:37]} 35. f4 {[%clk 0:00:15]}  Rf3 {[%clk 0:00:37]} 36. Rg8+ {[%clk 0:00:11]}  Ke7 {[%clk 0:00:36]} 37. Ra8 {[%clk 0:00:11]}  Kd7 {[%clk 0:00:29]} 38. Ra7 {[%clk 0:00:07]}  Kc8 {[%clk 0:00:25]} 39. Ra8+ {[%clk 0:00:08]}  Nb8 {[%clk 0:00:25]} 40. c5 {[%clk 0:00:07]}  Rxf4 {[%clk 0:00:16]} 41. Nb5 {[%clk 0:00:07]}  Rf3+ {[%clk 0:00:16]} 42. Kc4 {[%clk 0:00:07]}  Rf4+ {[%clk 0:00:16]} 43. Kc3 {[%clk 0:00:07]}  dxc5 {[%clk 0:00:14]} 44. bxc5 {[%clk 0:00:08]}  c6 {[%clk 0:00:14]} 45. Nd6+ {[%clk 0:00:07]}  Kc7 {[%clk 0:00:14]} 46. Ne8+ {[%clk 0:00:08]}  Kc8 {[%clk 0:00:13]} 47. d6 {[%clk 0:00:08]}  Re4 {[%clk 0:00:13]} 48. Nf6 {[%clk 0:00:08]}  Re3+ {[%clk 0:00:10]} 49. Kd4 {[%clk 0:00:08]}  Re1 {[%clk 0:00:10]} 50. d7+ {[%clk 0:00:08]}  Kc7 {[%clk 0:00:10]} 51. Rxb8 {[%clk 0:00:02]}  Rd1+ {[%clk 0:00:10]} 52. Ke5 {[%clk 0:00:02]}  Kxb8 {[%clk 0:00:10]} 53. Kxf5 {[%clk 0:00:02]}  Kc7 {[%clk 0:00:10]} 54. Ke6 {[%clk 0:00:03]}  Kd8 {[%clk 0:00:10]} 55. Ke5 {[%clk 0:00:02]}  Rd2 {[%clk 0:00:10]} 56. Ke6 {[%clk 0:00:02]}  Rd3 {[%clk 0:00:09]} 57. Ke5 {[%clk 0:00:02]}  Rxd7 {[%clk 0:00:05]} 58. Nxd7 {[%clk 0:00:02]}  Kxd7 {[%clk 0:00:05]} 59. Kf5 {[%clk 0:00:01]}  Kc7 {[%clk 0:00:05]} 60. Ke5 {[%clk 0:00:02]}  b5 {[%clk 0:00:05]} 61. cxb6+ {[%clk 0:00:02]}  Kxb6 {[%clk 0:00:06]} 62. Kd4 {[%clk 0:00:03]}  Kb5 {[%clk 0:00:06]} 63. Kc3 {[%clk 0:00:04]}  Kc5 {[%clk 0:00:06]} 64. Kd3 {[%clk 0:00:04]}  Kb4 {[%clk 0:00:06]} 65. Kd2 {[%clk 0:00:03]}  Kb3 {[%clk 0:00:06]} 66. Kd3 {[%clk 0:00:04]}  c5 {[%clk 0:00:06]} 67. Kd2 {[%clk 0:00:04]}  c4 {[%clk 0:00:07]} 68. Kc1 {[%clk 0:00:05]}  Kc3 {[%clk 0:00:07]} 0-1


[Site "https://www.chess.com"]

[Event "Titled Tuesday Blitz July 27 2021"]
[White "PalamedeCoach"]
[Black "Makhnev, Denis"]
[BlackFideId "13707647"]
[WhiteElo "2573"]
[BlackElo "2537"]
[Result "0-1"]
[Round "02"]
[TimeControl "180+1"]
[Date "2021.07.27"]
[WhiteClock "0:01:44"]
[BlackClock "0:01:58"]

1. e4 {[%clk 0:03:00]}  c6 {[%clk 0:02:59]} 2. Nc3 {[%clk 0:03:00]}  d5 {[%clk 0:03:00]} 3. Nf3 {[%clk 0:03:01]}  dxe4 {[%clk 0:03:00]} 4. Nxe4 {[%clk 0:03:00]}  Nf6 {[%clk 0:03:00]} 5. Qe2 {[%clk 0:03:00]}  Nxe4 {[%clk 0:03:00]} 6. Qxe4 {[%clk 0:03:00]}  Qd5 {[%clk 0:03:01]} 7. Qh4 {[%clk 0:03:00]}  Bf5 {[%clk 0:02:58]} 8. Bc4 {[%clk 0:02:56]}  Qd6 {[%clk 0:02:47]} 9. O-O {[%clk 0:02:55]}  e6 {[%clk 0:02:46]} 10. d3 {[%clk 0:02:54]}  Be7 {[%clk 0:02:44]} 11. Bg5 {[%clk 0:02:54]}  h6 {[%clk 0:02:43]} 12. Bxe7 {[%clk 0:02:53]}  Qxe7 {[%clk 0:02:44]} 13. Qxe7+ {[%clk 0:02:53]}  Kxe7 {[%clk 0:02:45]} 14. Rfe1 {[%clk 0:02:53]}  Nd7 {[%clk 0:02:45]} 15. Nd4 {[%clk 0:02:52]}  Bh7 {[%clk 0:02:44]} 16. a4 {[%clk 0:02:48]}  a5 {[%clk 0:02:44]} 17. Re2 {[%clk 0:02:46]}  Kd6 {[%clk 0:02:35]} 18. Rae1 {[%clk 0:02:45]}  Nc5 {[%clk 0:02:35]} 19. b3 {[%clk 0:02:30]}  Rhd8 {[%clk 0:02:34]} 20. Nf3 {[%clk 0:02:29]}  Rab8 {[%clk 0:02:32]} 21. d4 {[%clk 0:02:24]}  Nd7 {[%clk 0:02:31]} 22. Rd2 {[%clk 0:02:17]}  Kc7 {[%clk 0:02:22]} 23. c3 {[%clk 0:02:09]}  b5 {[%clk 0:02:13]} 24. axb5 {[%clk 0:02:08]}  cxb5 {[%clk 0:02:14]} 25. Bd3 {[%clk 0:02:08]}  Bxd3 {[%clk 0:02:13]} 26. Rxd3 {[%clk 0:02:08]}  Nc5 {[%clk 0:02:13]} 27. Rde3 {[%clk 0:02:08]}  Nxb3 {[%clk 0:02:13]} 28. Ne5 {[%clk 0:02:09]}  Rf8 {[%clk 0:02:09]} 29. c4 {[%clk 0:02:09]}  Nxd4 {[%clk 0:02:02]} 30. cxb5 {[%clk 0:02:07]}  Rxb5 {[%clk 0:02:02]} 31. Rc3+ {[%clk 0:02:04]}  Kd6 {[%clk 0:02:01]} 32. Nc4+ {[%clk 0:02:03]}  Ke7 {[%clk 0:02:01]} 33. Ne5 {[%clk 0:01:44]}  Ne2+ {[%clk 0:01:58]} 0-1


[Site "https://www.chess.com"]

[Event "Titled Tuesday Blitz July 27 2021"]
[White "Paravyan, David"]
[Black "Pham, Le Thao Nguyen"]
[WhiteFideId "4194985"]
[BlackFideId "12401226"]
[WhiteElo "2562"]
[BlackElo "2286"]
[Result "1-0"]
[Round "02"]
[TimeControl "180+1"]
[Date "2021.07.27"]
[WhiteClock "0:02:28"]
[BlackClock "0:00:47"]

1. c4 {[%clk 0:03:00]}  c6 {[%clk 0:02:24]} 2. Qa4 {[%clk 0:02:57]}  d5 {[%clk 0:02:25]} 3. cxd5 {[%clk 0:02:58]}  Qxd5 {[%clk 0:02:26]} 4. Nc3 {[%clk 0:02:58]}  Qd8 {[%clk 0:02:26]} 5. d4 {[%clk 0:02:58]}  Nf6 {[%clk 0:02:26]} 6. e4 {[%clk 0:02:59]}  g6 {[%clk 0:02:23]} 7. Nf3 {[%clk 0:02:58]}  Bg7 {[%clk 0:02:23]} 8. Be2 {[%clk 0:02:59]}  O-O {[%clk 0:02:24]} 9. O-O {[%clk 0:02:59]}  Nbd7 {[%clk 0:02:23]} 10. Bf4 {[%clk 0:02:57]}  Nb6 {[%clk 0:02:20]} 11. Qc2 {[%clk 0:02:56]}  Bg4 {[%clk 0:02:20]} 12. Rad1 {[%clk 0:02:54]}  e6 {[%clk 0:02:18]} 13. Rfe1 {[%clk 0:02:52]}  Rc8 {[%clk 0:02:06]} 14. b4 {[%clk 0:02:48]}  a6 {[%clk 0:02:06]} 15. a4 {[%clk 0:02:46]}  Nbd7 {[%clk 0:02:05]} 16. Bd6 {[%clk 0:02:43]}  Re8 {[%clk 0:02:05]} 17. h3 {[%clk 0:02:43]}  Bxf3 {[%clk 0:02:05]} 18. Bxf3 {[%clk 0:02:44]}  Bf8 {[%clk 0:01:58]} 19. Bc5 {[%clk 0:02:44]}  Qc7 {[%clk 0:01:50]} 20. e5 {[%clk 0:02:44]}  Nd5 {[%clk 0:01:46]} 21. Bxf8 {[%clk 0:02:38]}  Nxc3 {[%clk 0:01:46]} 22. Bd6 {[%clk 0:02:37]}  Qxd6 {[%clk 0:01:38]} 23. exd6 {[%clk 0:02:38]}  Nxd1 {[%clk 0:01:37]} 24. Qxd1 {[%clk 0:02:38]}  Red8 {[%clk 0:01:37]} 25. Qd2 {[%clk 0:02:38]}  Nb6 {[%clk 0:01:30]} 26. Qf4 {[%clk 0:02:37]}  Nc4 {[%clk 0:01:24]} 27. h4 {[%clk 0:02:37]}  Nxd6 {[%clk 0:01:22]} 28. h5 {[%clk 0:02:37]}  Nf5 {[%clk 0:01:21]} 29. d5 {[%clk 0:02:31]}  cxd5 {[%clk 0:01:21]} 30. Bg4 {[%clk 0:02:29]}  Nd6 {[%clk 0:01:11]} 31. h6 {[%clk 0:02:29]}  Rc6 {[%clk 0:00:47]} 32. Qf6 {[%clk 0:02:28]} 1-0


[Site "https://www.chess.com"]